[Event "87th Tata Steel Masters 2025"]
[Site "Wijk aan Zee"]
[Date "2025.01.25"]
[Round "7.5"]
[White "Gukesh, Dommaraju"]
[Black "Harikrishna, Pentala"]
[Result "1-0"]
[ECO "C02"]
[WhiteElo "2777"]
[BlackElo "2695"]
[Annotator "Stockfish 17 - Chessbase"]
[PlyCount "92"]
[EventDate "2025.??.??"]
[TimeControl "60"]

{[%evp 16,92,7,0,0,0,0,0,0,-14,10,16,20,18,67,51,62,53,47,49,54,42,51,44,27,-15,8,-56,25,6,11,23,68,66,83,69,78,69,81,16,57,44,110,112,611,593,604,588,2220,2057,1475,726,1170,720,706,714,658,344,446,409,411,431,558,510,445,426,476,464,435,384,1131,1177,1038,1038,5624,5581,29962,0,544]} 1. e4 {[%eval 18,0] [%emt 0:00:00]} e6 {[%eval 28,0] [%emt 0:00:00]} 2. d4 {[%eval 28,0] [%emt 0:00:00]} d5 {[%eval 33,0] [%emt 0:00:00]} 3. e5 {[%eval 25,0] [%emt 0:00:00]} c5 {[%eval 23,0] [%emt 0:00:00]} 4. c3 {[%eval 14,0] [%emt 0:00:00]} Nc6 {[%eval 19,0] [%emt 0:00:00]} 5. Nf3 {[%eval 22,0] [%emt 0:00:00]} Bd7 {[%eval 25,0] [%emt 0:00:00]} 6. Be2 {[%eval 16,0] [%emt 0:00:00]} Nge7 {[%eval 18,0] [%emt 0:00:00]} 7. O-O {[%eval 19,0] [%emt 0:00:00]} cxd4 {[%eval 34,0] [%emt 0:00:00]} 8. cxd4 {[%eval 37,0] [%emt 0:00:00]} Nf5 {[%eval 35,0] [%emt 0:00:00]} 9. Nc3 {[%eval 35,0] [%emt 0:00:00]} a6 {[%eval 34,0] [%emt 0:00:00] C02: French: Advance Variation.} 10. Kh1 {[%eval 28,0] [%emt 0:00:00]} Rc8 {[%eval 44,0] [%emt 0:00:00]} 11. Rb1 $5 {[%eval 13,0] [%emt 0:00:00][%mdl 4] Leaves trodden paths.} (11. a3 Be7 12. Bd3 Nfxd4 13. Nxd4 Nxd4 14. Qg4 Nb3 15. Qxg7 Rf8 16. Rb1 Nxc1 17. Rfxc1 Qb6 18. Qg3 h5 19. f4 h4 20. Qf3 Qd4 21. Rd1 h3 22. g3 Qb6 23. Ne2 Kd8 24. f5 Kc7 25. f6 Bc5 {Aronian,L (2729)-Kramnik,V (2753) chess.com INT 2024 ½-½ (68)}) 11... Qb6 $146 {[%eval 17,0] [%emt 0:00:00][%cal Rc6d4]} (11... b5 12. g4 Nh4 13. Bg5 Be7 14. Be3 Nxf3 15. Bxf3 O-O 16. Be2 f6 17. exf6 Bxf6 18. Qd2 {1-0 Sjugirov,S (2705)-Mekhitarian,K (2559) Titled Tuesday intern op 17th Oct Late blitz 2023 (10)}) (11... Be7 12. g4 Nh4 13. Nxh4 Bxh4 14. f4 Be7 15. Be3 Na5 16. f5 Nc4 17. Bxc4 Rxc4 18. Qf3 Qa5 19. a3 Kd8 20. fxe6 Bxe6 21. Ne2 Kd7 22. Nf4 Rf8 23. Rf2 Qb5 24. Rbf1 Rcc8 25. Qd1 h6 26. h3 {Sjugirov,S (2689)-Velten,P (2481) Orosei ITA 2024 0-1 (59)}) (11... Bb4 12. Bd3 O-O 13. Bxf5 exf5 14. Nxd5 Be6 15. Nc3 Qa5 16. d5 Bxc3 17. dxe6 Bxe5 18. exf7+ Rxf7 19. Ng5 Qxa2 20. Nxf7 Qxf7 21. Be3 Rd8 22. Qf3 Rd5 23. Rfd1 Rb5 24. b4 h6 25. Bc5 Kh7 26. h3 {Nasuta,G (2547)-Meier,G (2608) chess.com INT 2024 1-0 (34)}) 12. g4 {[%eval 11,0] [%emt 0:00:00][%cal Yg2g4,Yg4g5,Yg5g6][%mdl 32]} Nfe7 $6 {[%eval 69,0] [%emt 0:00:00][%cal Yc6e5] Inaccuracy. Ncxd4 was best.} (12... Nfxd4 $2 13. Be3 $18) (12... Ncxd4 13. gxf5 Nxf3 14. Bxf3 Rxc3 15. Be3 Rxe3 16. fxe3 Qxe3 17. Rc1 Be7 18. Rc7) 13. Be3 {[%eval 67,0] [%emt 0:00:00]} h5 {[%eval 69,0] [%emt 0:00:00]} 14. g5 {[%eval 58,0]} Nf5 {[%eval 96,0] [%emt 0:00:00] [#]} (14... Qa7 {should be considered.}) 15. g6 $1 $14 {[%eval 91,0]} f6 {[%eval 96,0] [%emt 0:00:00]} 16. exf6 {[%eval 88,0]} gxf6 {[%eval 109,0] [%emt 0:00:00]} 17. Bd3 {[%eval 61,0]} Nce7 {[%eval 54,0]} 18. Rg1 {[%eval 62,0]} Bg7 {[%eval 85,0]} 19. Na4 $6 {[%eval 25,0] Inaccuracy. Bf4 was best.} (19. Bf4 h4 20. h3 Qa7 21. Rg2 Rc6 22. Ne2 Qb6 23. Qd2 Kd8 24. Re1) 19... Qd6 $6 {[%eval 83,0] Inaccuracy. Qb4 was best.} (19... Qb4 20. Nc5) 20. b4 {[%eval 37,0]} b6 {[%eval 26,0] Prevents Nc5.} 21. b5 {[%eval 24,0]} (21. Bd2) 21... axb5 {[%eval 26,0]} (21... Nxe3 $15 22. fxe3 a5) 22. Bxb5 {[%eval 26,0]} Bxb5 {[%eval 25,0]} 23. Rxb5 {[%eval 31,0]} Nxe3 {[%eval 57,0]} 24. fxe3 {[%eval 62,0]} Rc6 {[%eval 78,0]} 25. Qb3 {[%eval 68,0][%cal Ra4b6]} O-O {[%eval 58,0]} 26. Nxb6 {[%eval 59,0] White is more active.} Bh6 {[%eval 96,0]} 27. Na4 $6 {[%eval 23,0] Inaccuracy. Re1 was best.} (27. Nd2 $16) (27. Re1 Kh8 28. Na4 Rg8 29. Nc5 Nf5 30. Rg1 Bxe3 31. Rb7 Rg7 32. Rb8+ Rg8) 27... Nf5 {[%eval 2,0]} 28. Rc5 $1 {[%eval 37,0] [#]} Rxc5 {[%eval 69,0] White now steadily converts the win.} (28... Bxe3 $2 29. Qb7 Qe7 (29... Rxc5 30. Qh7#) (29... Ne7 $2 30. Rxc6 Rb8 31. Rxd6 $18) 30. Qxc6 $18) (28... Rfc8 $14) 29. Nxc5 $40 {[%eval 118,0][%mdl 128] White goes for the king.} (29. dxc5 Qb8) 29... Nxe3 $4 {[%eval 446,0][%mdl 8192] Blunder. Rb8 was best.} (29... Bxe3 $16 30. Qb7 Qe7 31. Qxe7 Nxe7) (29... Rb8 30. Qa4) 30. Qb7 $18 {[%eval 441,0]} Bg7 {[%eval 422,0]} 31. Re1 {[%eval 431,0]} Nf5 {[%eval 419,0]} 32. Nxe6 {[%eval 457,0] Excellent horsemanship.} Rb8 {[%eval 457,0]} 33. Qf7+ {[%eval 441,0]} Kh8 {[%eval 433,0]} 34. Nxg7 {[%eval 421,0]} Nxg7 {[%eval 358,0]} 35. Re7 {[%eval 342,0][%csl Ge7][%cal Rf7g7]} Rg8 {[%eval 353,0]} 36. Rd7 {[%eval 304,0]} Qb6 {[%eval 304,0]} 37. Rxd5 {[%eval 371,0]} Qb1+ {[%eval 354,0]} 38. Kg2 {[%eval 339,0][%cal Yd5h5]} f5 {[%eval 361,0]} 39. Rc5 {[%eval 326,0] Repels Qc2+} Qb2+ {[%eval 381,0]} 40. Kf1 {[%eval 345,0]} Qa1+ {[%eval 367,0]} 41. Kf2 {[%eval 379,0]} Qb2+ {[%eval 348,0]} 42. Kg3 {[%eval 365,0] Qf6 would now be deadly.} h4+ $2 {[%eval 451,0]} (42... Qb8+ 43. Qc7 Rd8) 43. Kf4 $1 {[%eval 455,0][%cal Yf7f6]} (43. Kxh4 $2 Qf2+ 44. Kg5 Qe3+ (44... Qxf3 $2 45. Qxg8+ Kxg8 46. Rc8+ $19) 45. Kf6 Ne8+ $19 (45... Qxf3 46. Qxg8+ Kxg8 47. Rc8+)) (43. Nxh4 Qe2 44. Rxf5 (44. Nxf5 Nxf5+ 45. Rxf5 Rxg6+ 46. Qxg6 Qg2+ 47. Kxg2) 44... Nxf5+ 45. Qxf5 (45. Nxf5 Rxg6+ 46. Qxg6 Qg2+ 47. Kxg2) 45... Qe3+ 46. Qf3 (46. Nf3 Rxg6+ 47. Qxg6 Qg1+ 48. Nxg1) 46... Qg5+ (46... Qg1+ 47. Kh3 $16) 47. Kh3 Re8) 43... Qb8+ {[%eval 513,0]} 44. Re5 {[%eval 508,0]} Qd6 {[%eval 603,0] Repels Qf6} 45. Kg5 {[%eval 579,0][%cal Yg5h6] Kh6! would kill now.} (45. Nxh4 $2 {is the wrong capture.} Qxd4+ 46. Kf3 Qxe5 $19) 45... Qb8 $6 {[%eval 800,0] Inaccuracy. Rf8 was best.} (45... Rf8 46. Qe7 Qxe7+ 47. Rxe7 f4 48. Rf7 Kg8 49. Rxf8+ Kxf8 50. Kxf4 Nh5+ 51. Kg5) 46. Kf4 $6 {[%eval 489,0] Inaccuracy. Kh6 was best.} (46. Re7 h3 47. Qxf5 Qc8 48. Qf4 (48. Qxc8 Rxc8 49. Ne5 Rf8 $18) 48... Ne6+ 49. Rxe6 Qd8+ 50. Kh5 (50. Qf6+ Qxf6+ 51. Rxf6 Rg7 52. Rf8+ Rg8 53. Rxg8+ Kxg8 54. Kf6 Kf8 55. g7+ Kg8) 50... Rg7 51. Qe5) (46. Kh6 Qf8 47. Re7 Ne8+ 48. Qxf8 Rxf8 49. Nxh4 Kg8 50. Nxf5 Rxf5 51. Rxe8+ Rf8) 46... Qd6 $1 {[%eval 508,0] Weighted Error Value: White=0.53/Black=0.89 Loses game: 	--- 	Black=1 Mistake: 	White=2 	Black=4 Inaccurate: 	White=1 	Black=2 OK: 	White=8 	Black=10 Best: 	White=5 	Black=3 Strong: 	White=2 	--- Brilliant: 	White=1 	--- Precisão Stockfish 17: Brancas 96% Pretas 91% Precisão Chess.com: Branas 93.2% Pretas 86.8%} 1-0

[Event "87th Tata Steel Masters 2025"]
[Site "Wijk aan Zee"]
[Date "2025.01.25"]
[Round "7.6"]
[White "Fedoseev, Vladimir"]
[Black "Keymer, Vincent"]
[Result "1-0"]
[ECO "D43"]
[WhiteElo "2717"]
[BlackElo "2733"]
[Annotator "Stockfish 17 - Chessbase"]
[PlyCount "101"]
[EventDate "2025.??.??"]
[TimeControl "60"]

{[%evp 14,101,27,21,8,-20,-22,-22,-8,-10,-8,-7,-16,-14,-12,-8,-10,-34,-15,-14,20,19,30,9,23,16,49,50,57,0,0,0,0,0,0,0,76,72,162,158,177,174,177,179,174,89,90,81,83,83,93,78,73,47,115,103,303,171,170,183,177,169,154,68,91,82,171,192,225,226,234,227,212,220,218,176,315,243,294,303,300,297,295,286,1377,1102,29987,29988,29993,29994]} 1. d4 {[%eval 17,0] [%emt 0:00:00]} Nf6 {[%eval 19,0] [%emt 0:00:00]} 2. c4 {[%eval 18,0] [%emt 0:00:00]} e6 {[%eval 11,0] [%emt 0:00:00]} 3. Nf3 {[%eval 12,0] [%emt 0:00:00]} d5 {[%eval 17,0] [%emt 0:00:00]} 4. Nc3 {[%eval 1,0] [%emt 0:00:00]} c6 {[%eval 19,0] [%emt 0:00:00]} 5. Bg5 {[%eval 14,0] [%emt 0:00:00]} h6 {[%eval 14,0] [%emt 0:00:00]} 6. Bxf6 {[%eval 8,0] [%emt 0:00:00]} Qxf6 {[%eval 0,0] [%emt 0:00:00]} 7. e3 {[%eval 6,0] [%emt 0:00:00]} Nd7 {[%eval 25,0] [%emt 0:00:00]} 8. Be2 $1 {[%eval 24,0] [%emt 0:00:00][%mdl 4] is more profitable than 8.Bd3 at the moment.} Qe7 {[%eval 35,0] [%emt 0:00:00] D43: Semi-Slav: 5 Bg5 h6.} (8... Qd8 9. O-O Be7 10. Qc2 O-O 11. a3 b6 12. Rfd1 Bb7 13. Rac1 Qb8 14. cxd5 cxd5 15. Qa4 Nf6 16. Ba6 Bxa6 17. Qxa6 Qc8 18. Qxc8 Rfxc8 19. Ne5 Bd6 20. Nd3 Ne8 21. Kf1 Kf8 22. Ke2 Ke7 23. h3 {Kramnik,V (2801)-Aronian,L (2820) Zuerich 2012 ½-½ (43)}) (8... Bb4 9. O-O O-O 10. Qc2 Bxc3 11. Qxc3 dxc4 12. Rfd1 c5 13. Bxc4 a6 14. Qa3 b6 15. Bb5 Rd8 16. Bc6 Ra7 17. dxc5 Nxc5 18. Qb4 Nd7 19. Qd6 Rf8 20. Rd2 Nc5 21. Rad1 Qe7 22. b4 Qxd6 23. Rxd6 {Dubov,D (2683)-Yu,Y (2726) Wijk aan Zee 2020 1-0 (31)}) 9. c5 $146 {[%eval 18,0] [%emt 0:00:00]} (9. O-O g6 10. c5 Bg7 11. e4 O-O 12. Rc1 a5 13. Re1 b6 14. exd5 exd5 15. Bf1 Qd8 16. cxb6 Nxb6 {½-½ Grau Ribas,J (1927)-Van Hattum,L EU-ch SC-OR/496 email 2022}) (9. a3 g6 10. O-O Bg7 11. e4 dxc4 12. e5 O-O 13. Bxc4 c5 14. Re1 cxd4 15. Qxd4 Nb6 16. Ba2 Bd7 17. Qf4 Bc6 18. Nd4 Rac8 19. Rad1 Rfd8 20. Qg3 {½-½ (20) Jagdhuber,R (1912)-Leckner,H (1870) Bayern 2012}) 9... g5 {[%eval 19,0] [%emt 0:00:00]} 10. b4 {[%eval 35,0] [%emt 0:00:00]} Bg7 {[%eval 38,0] [%emt 0:00:00] The position is equal.} 11. Rc1 {[%eval 44,0] [%emt 0:00:00]} O-O {[%eval 27,0] [%emt 0:00:00]} 12. b5 {[%eval 36,0] [%emt 0:00:00]} g4 {[%eval 41,0] [%emt 0:00:00]} 13. Nd2 {[%eval 38,0] [%emt 0:00:00]} e5 {[%eval 35,0] [%emt 0:00:00]} 14. Nb3 {[%eval 36,0] [%emt 0:00:00]} exd4 {[%eval 31,0] [%emt 0:00:00]} 15. Nxd4 {[%eval 25,0] [%emt 0:00:00]} Ne5 {[%eval 34,0] [%emt 0:00:00]} (15... Qxc5 $6 16. Bxg4 Bxd4 17. exd4 Qe7+ 18. Ne2 $14) 16. O-O {[%eval 5,0] [%emt 0:00:00]} Qxc5 {[%eval 0,0]} 17. bxc6 {[%eval 1,0] White sacrificed a pawn} bxc6 {[%eval 0,0] [#]} 18. Ncb5 $1 {[%eval 0,0] Inhibits Qd6.} Qb6 {[%eval 7,0]} 19. Nd6 {[%eval 11,0][%mdl 1024] White has compensation.} Bd7 {[%eval 4,0]} 20. N4f5 {[%eval 41,0] A dynamic duo of knights.} h5 {[%eval 69,0]} 21. f3 {[%eval 39,0]} (21. Kh1 $14) 21... Rfb8 $1 {[%eval 5,0]} 22. Kh1 {[%eval 0,0]} Bf8 {[%eval 0,0]} (22... Bxf5 23. Nxf5 Re8 24. fxg4 $16) 23. f4 {[%eval 0,0]} Ng6 {[%eval 15,0] ...Bxd6 would now be deadly.} 24. e4 $1 {[%eval 42,0]} Qb4 {[%eval 86,0]} (24... Bxd6 25. Nxd6 Qb2) 25. e5 $1 $16 {[%eval 115,0]} Qa3 {[%eval 166,0]} (25... Qb2 $16 {is a better defense.}) 26. Ng3 $1 $18 {[%eval 155,0]} Bxd6 {[%eval 169,0]} (26... Qxa2 $2 27. Nxh5 Bxd6 28. Nf6+ (28. exd6 Qb2 $18) 28... Kh8 29. Nxd7 $18 (29. exd6 Bf5 $18)) 27. exd6 {[%eval 175,0]} Qxd6 {[%eval 145,0]} 28. Nxh5 {[%eval 154,0]} Rb4 {[%eval 155,0]} 29. Bxg4 {[%eval 141,0]} (29. Qd2 $1 $18) 29... f5 $16 {[%eval 137,0]} 30. Bf3 {[%eval 134,0]} Rf8 {[%eval 135,0][%cal Yd7e8]} 31. a3 {[%eval 133,0]} Rb7 {[%eval 138,0]} 32. Re1 {[%eval 100,0][%cal Yf1e1,Ye1e3,Ye3g3,Yg3g5][%mdl 32] Wards off Be8} Rf7 {[%eval 85,0]} (32... Nxf4 $2 33. Nxf4 Qxf4 34. Bxd5+ Kg7 35. Bc4 $18 (35. Bxc6 Rh8 $18)) 33. Qd4 {[%eval 83,0] Prevents Nxf4.} Nf8 $6 {[%eval 166,0] Inaccuracy. Rb3 was best.} (33... Rb3 34. Rb1 Rxb1 35. Rxb1 Be8 36. h3 Nh4 37. Rg1 Kh7 38. Qf2 Ng6 39. Re1) 34. Re3 {[%eval 159,0] White is much more active.} Nh7 $2 {[%eval 187,0]} (34... Rb5 $16 35. h3 (35. Qxa7 Ne6 $16) 35... Rb8) 35. Be2 {[%eval 198,0]} (35. Bxd5 cxd5 36. Rg3+ Kf8 37. Qh8+ Ke7 38. Re1+ Be6 39. Rg7 (39. Ng7 Nf8 $18)) 35... Nf6 $18 {[%eval 216,0]} 36. Rg3+ $1 {[%eval 224,0] White attacks} Kh7 {[%eval 219,0] [#]} 37. Rg5 $1 {[%eval 215,0]} c5 {[%eval 201,0][%cal Yc6c5,Yc5c4][%mdl 32] [#]} 38. Nxf6+ $6 {[%eval 111,0] Inaccuracy. Qf2 was best.} (38. Qxc5 $2 Qxc5 39. Nxf6+ Rxf6 $19) (38. Qf2 Ne4 39. Qh4 Qh6 40. h3 d4 41. Bc4 Be8 42. Bd3 Rbc7 43. Rb1 Rf8) 38... Rxf6 $14 {[%eval 121,0][%cal Yf7f6,Yf6h6,Yh6h7][%mdl 32]} 39. Qe3 {[%eval 103,0][%cal Ye2d3]} (39. Qxc5 $2 Qxc5 40. Rg1 Rh6 $19 (40... Qxa3 $2 41. Bf3 $19)) 39... Rb8 $6 {[%eval 232,0] Inaccuracy. Rg6 was best.} (39... Rg6 40. Rxg6 Kxg6 41. h3 c4 42. Qd4 Qe6 43. Re1 Kh7 44. Qf2 Qf6 45. Bf3) 40. Bd3 $18 {[%eval 265,0]} (40. Rxc5 Qe6 41. Qg1 Qxe2 $17) (40. Qxc5 $2 {too greedy.} Qxc5 41. Rh5+ Rh6 42. Rxh6+ Kxh6 $19) 40... c4 {[%eval 266,0]} 41. Qh3+ {[%eval 229,0]} Rh6 {[%eval 278,0]} 42. Bxf5+ {[%eval 271,0]} Bxf5 {[%eval 257,0]} 43. Qxf5+ {[%eval 204,0]} Kh8 {[%eval 202,0]} 44. h3 {[%eval 205,0]} (44. Qxd5 Qxf4 45. Qe5+ (45. Qxc4 $2 Qxh2#) 45... Qxe5 46. Rxe5 Rc6) 44... Rd8 {[%eval 313,0]} (44... Qe6 45. Qxe6 (45. Qxd5 Rxh3+ 46. gxh3 Qxh3+ 47. Kg1 Qe3+ 48. Kh1 Qh3+ 49. Kg1 Qe3+ 50. Kh1 Qh3+) 45... Rxe6 46. Rh5+ (46. Rxd5 Rc6 $18) 46... Kg7 47. Rxd5 Rc6 48. Rg5+ Kf7) 45. Rd1 $40 {[%eval 307,0][%mdl 128] White attacks with force.} d4 {[%eval 355,0]} 46. Qf7 {[%eval 356,0][%csl Ya7,Yc4]} Rh7 {[%eval 396,0] Repels Qg7+} 47. Qxc4 {[%eval 357,0]} Qxf4 {[%eval 391,0]} 48. Qc5 {[%eval 351,0]} Qe4 $6 {[%eval 476,0] Inaccuracy. Qd6 was best. [#]} (48... Rh6 49. Rd3 Re8 (49... Qf1+ $2 50. Kh2 $18) 50. Qxd4+ Qxd4 51. Rxd4 Re7) (48... Qd6 49. Qf5) 49. Rd3 $1 {[%eval 466,0][%mdl 512] Black must now prevent Rdg3.} a6 $6 {[%eval 641,0] Inaccuracy. Qe7 was best.} (49... Qe1+ 50. Kh2) (49... Qe7 50. Rxd4 Re8 51. Qxe7 Rhxe7 52. Rh4+ Rh7 53. Rxh7+ Kxh7 54. Ra5 Kg6 55. Rxa7) 50. Rdg3 {[%eval 507,0]} Qf4 $4 {[%eval 32754,0] Checkmate is now unavoidable. Qb1+ was best.} (50... Qb1+ 51. Kh2 Qb8 52. Qf5 Qd6 53. Rh5 Qxg3+ 54. Kxg3 Rg8+ 55. Kf4 Rxh5 56. Qxh5+) 51. Rf3 {[%eval 32756,0] Weighted Error Value: White=0.14 (very precise) /Black=0.51 Loses game: 	--- 	Black=1 Mistake: 	White=4 	Black=6 Inaccurate: 	White=2 	Black=3 OK: 	White=16 	Black=15 Best: 	White=2 	Black=5 Strong: 	White=4 	Black=1 Brilliant: 	White=2 	--- Precisão Stockfish 17: Brancas 97% Pretas 92% Precisão Chess.com: Branas 93.8% Pretas 85.1%} 1-0

[Event "87th Tata Steel Masters 2025"]
[Site "Wijk aan Zee"]
[Date "2025.01.25"]
[Round "7.7"]
[White "Warmerdam, Max"]
[Black "Erigaisi, Arjun Kumar"]
[Result "1-0"]
[ECO "B50"]
[WhiteElo "2646"]
[BlackElo "2801"]
[Annotator "Stockfish 17 - Chessbase"]
[PlyCount "75"]
[EventDate "2025.??.??"]
[TimeControl "60"]

{[%evp 9,75,22,18,23,20,16,53,56,59,57,50,42,41,40,59,19,70,96,114,117,102,99,94,93,93,87,87,90,156,148,182,166,175,166,202,170,221,224,261,238,253,263,260,250,269,248,252,256,561,227,427,443,410,423,809,806,823,789,1274,1274,1203,1066,29981,29984,29984,1150,29985,29986]} 1. e4 {[%eval 18,0] [%emt 0:00:00]} c5 {[%eval 25,0] [%emt 0:00:00]} 2. Nf3 {[%eval 2,0] [%emt 0:00:00]} d6 {[%eval 22,0] [%emt 0:00:00]} 3. c3 {[%eval 2,0] [%emt 0:00:00]} Nf6 {[%eval 7,0] [%emt 0:00:00]} 4. h3 {[%eval 7,0] [%emt 0:00:00]} Bd7 {[%eval 23,0] [%emt 0:00:00]} 5. Bd3 {[%eval 27,0] [%emt 0:00:00]} Nc6 {[%eval 3,0] [%emt 0:00:00]} 6. Bc2 {[%eval 18,0] [%emt 0:00:00]} Rc8 {[%eval 25,0] [%emt 0:00:00]} 7. O-O {[%eval 15,0] [%emt 0:00:00]} g5 $146 {[%eval 55,0] [%emt 0:00:00][%cal Yg7g5,Yg5g4][%mdl 32]} (7... g6 8. d4 cxd4 9. cxd4 Nb4 (9... Bg7 10. Nc3 O-O 11. Re1 Na5 12. e5 Ne8 13. Bg5 f6 14. exf6 Nxf6 15. Qe2 Re8 16. Rac1 a6 17. Bd3 b5 18. Ne4 Rxc1 19. Rxc1 Bf5 20. Ned2 Bxd3 21. Qxd3 Qd7 22. Qc3 {Ibarra Jerez,J (2559)-Vidit,S (2721) chess.com INT 2024 1-0 (44)}) 10. Nc3 Nxc2 11. Qxc2 Bg7 12. Qb3 O-O 13. Be3 b5 14. Rac1 a5 15. a3 Rb8 16. Qc2 b4 17. axb4 axb4 18. Ne2 b3 19. Qb1 d5 20. Ne5 Nxe4 21. Nxd7 Qxd7 22. Bf4 {Perea Fruet,F (2065)-Adhiban,B (2541) San Vicente ESP 2024 0-1 (39)}) (7... e6 8. Re1 Be7 9. d4 cxd4 10. cxd4 Nb4 11. Bb3 Rxc1 12. Qxc1 Nd3 13. Qd2 (13. Qe3 Nxe1 14. Qxe1 d5 15. e5 Ne4 16. Nc3 Bb4 17. Qe3 Nxc3 18. bxc3 Be7 19. c4 dxc4 20. Bxc4 Bc6 21. Rd1 Qa5 22. Nh2 {Rjabzev,K (2287)-Schnoor,E (2059) Dresden 2013 1-0 (51)}) 13... Nxe1 14. Qxe1 Bc6 15. Nc3 O-O 16. d5 exd5 17. exd5 Bd7 18. Qe3 a6 19. Bc2 Re8 20. Qd4 Bf8 21. Rc1 g6 22. Qb4 {Lopez Pereyra,A-Vera Gonzalez Quevedo,R (2445) Corte Ingles 1988 0-1 (41)}) 8. d4 $1 {[%eval 76,0] [%emt 0:00:00] d5 would now be deadly. White is slightly better.} g4 {[%eval 75,0] [%emt 0:00:00]} 9. d5 {[%eval 47,0] [%emt 0:00:00]} gxf3 {[%eval 5,0] [%emt 0:00:00]} 10. dxc6 {[%eval 46,0] [%emt 0:00:00]} Bxc6 {[%eval 51,0] [%emt 0:00:00]} 11. Qxf3 {[%eval 59,0] [%emt 0:00:00]} Rg8 {[%eval 58,0] [%emt 0:00:00] Wards off Bg5} 12. Rd1 {[%eval 41,0] [%emt 0:00:00]} e6 {[%eval 81,0] [%emt 0:00:00]} (12... Qd7) 13. Nd2 $14 {[%eval 101,0] [%emt 0:00:00][%cal Yb1d2,Yd2f1,Yf1g3][%mdl 32]} b5 {[%eval 144,0] [%emt 0:00:21] Inhibits Nc4.} 14. a4 {[%eval 153,0] [%emt 0:00:00] aiming for axb5.} a6 {[%eval 162,0] [%emt 0:00:05]} 15. axb5 {[%eval 153,0] [%emt 0:00:20]} axb5 {[%eval 146,0] [%emt 0:00:04]} 16. Nf1 {[%eval 139,0]} Nd7 {[%eval 157,0]} 17. Ng3 {[%eval 156,0]} Ne5 {[%eval 148,0]} 18. Qh5 {[%eval 112,0]} Rg7 $6 {[%eval 218,0] Inaccuracy. Qf6 was best.} (18... Qf6) 19. Kh2 $16 {[%eval 186,0]} Qf6 $6 {[%eval 251,0] Inaccuracy. Rg6 was best.} (19... Rg6 20. Ra6 Qe7 21. Qxh7 Qf6 22. Rf1 Bh6 23. Bxh6 Rxh6 24. Qg8+ Kd7 25. Ra7+) 20. f4 {[%eval 245,0]} Nd7 {[%eval 228,0]} 21. Qe2 {[%eval 224,0] And now Nh5 would win.} Qd8 {[%eval 254,0]} 22. e5 {[%eval 201,0]} Qh4 {[%eval 203,0] [#]} (22... dxe5 23. Be4 (23. fxe5 Qh4) 23... Qc7) 23. Ne4 $1 $18 {[%eval 203,0] Active counter play!} Bxe4 {[%eval 254,0]} 24. Bxe4 {[%eval 245,0]} d5 {[%eval 247,0]} 25. Qxb5 {[%eval 233,0] Ra7 is the strong threat.} c4 {[%eval 292,0]} 26. Ra7 $6 {[%eval 224,0] Inaccuracy. Bxd5 was best.} (26. Bxd5 exd5 27. Qxd5 f5 28. Qe6+ Kd8 29. Qd5 Ke8 30. Ra8 Rxa8 31. Qxa8+ Qd8) 26... Rd8 {[%eval 197,0] [#]} 27. Bxd5 {[%eval 196,0][%mdl 512]} exd5 {[%eval 204,0]} 28. Qxd5 $40 {[%eval 178,0][%mdl 128] White attacks with force.} Qe7 $4 {[%eval 434,0] Blunder. Nb8 was best.} (28... Nb8 29. Qxd8+ (29. Qb5+ Nd7 30. Qc6 Qg3+ 31. Kh1 Qg6 32. Qd5 Qe6 33. Qf3 f5 34. exf6) 29... Qxd8 30. Rxd8+ Kxd8) 29. Ra8 $4 {[%eval 197,0] Blunder. Be3 was best.} (29. Qxc4 Qc5 30. Qxc5 Bxc5 $16) (29. Be3 Qe6 30. Qb5 f6 31. Ra6 Qf5 32. Qxc4 fxe5 33. g4 Qf7 34. Re6+ Be7) 29... Rxa8 $4 {[%eval 469,0] Blunder. Qe6 was best.} (29... Qe6 30. Qf3 f5 31. exf6 Qxf6 32. Qe4+ Re7 33. Rxd8+ Kxd8 34. Qb7 Rg7 35. Be3) 30. Qxa8+ {[%eval 454,0]} Qd8 {[%eval 434,0]} 31. Qb7 {[%eval 426,0]} Bc5 $6 {[%eval 548,0] Inaccuracy. Rg6 was best. Repels Be3} (31... Rg6 32. Be3 Re6 (32... Bh6 33. g3 Qe7 34. Rd4 Qd8 35. Rxc4 Nb6 36. Rc6 Rxc6 37. Qxc6+)) 32. f5 {[%eval 503,0]} Bb6 {[%eval 567,0]} 33. Bh6 {[%eval 516,0]} Rg8 {[%eval 609,0]} 34. Kh1 {[%eval 605,0] Threatens to win with e6.} (34. Rd6 Bc7) 34... Qc7 {[%eval 603,0]} 35. Qd5 {[%eval 612,0] White wants to mate with e6.} Rg3 {[%eval 779,0]} 36. e6 {[%eval 800,0]} fxe6 {[%eval 803,0]} 37. Qxe6+ {[%eval 802,0]} Kd8 {[%eval 708,0] [#]} 38. Bf4 $1 {[%eval 699,0][%mdl 512] Weighted Error Value: White=0.26 (precise) /Black=0.66. Mistake: 	White=1 	Black=6 Inaccurate: 	White=1 	Black=1 OK: 	White=11 	Black=9 Best: 	White=1 	Black=2 Strong: 	White=2 	--- Brilliant: 	White=1 	--- Precisão Stockfish 17: Brancas 94% Pretas 87% Precisão Chess.com: Branas 93.0% Pretas 82.6%} 1-0